lending/lending_fUSD_20250303
["ID","MTS","AMOUNT","RATE_DAILY","PERIOD"]
[355201767,1741005040421,-505.99759516,0.00014886,2]
[355201768,1741005040431,-499.27224265,0.00014886,2]
[355201769,1741005040440,-504.67998822,0.00014886,2]
[355201770,1741005040450,-500.0,0.00014886,2]
[355201771,1741005040459,-500.0,0.00014886,2]
[355201772,1741005040469,-500.0,0.00014886,2]
[355201773,1741005040479,-506.68415193,0.00014886,2]
[355201774,1741005040489,-500.0,0.00014886,2]
[355201775,1741005040498,-499.39670922,0.00014886,2]
[355201776,1741005040510,-505.2092046,0.00014886,2]
[355201777,1741005040521,-491.13024029,0.00014886,2]
[355201779,1741005040531,-500.0,0.00014886,2]
[355201781,1741005040542,-500.0,0.00014886,2]
[355201783,1741005040551,-500.0,0.00014886,2]
[355201785,1741005040560,-505.23445571,0.00014886,2]
[355201787,1741005040570,-500.0,0.00014886,2]
[355201789,1741005040580,-504.57025721,0.00014886,2]
[355201790,1741005040589,-500.0,0.00014886,2]
[355201791,1741005040600,-504.09620558,0.00014886,2]
[355201792,1741005040610,-500.0,0.00014886,2]
[355201793,1741005040620,-500.0,0.00014886,2]
[355201794,1741005040630,-500.0,0.00014886,2]
[355201795,1741005040640,-500.0,0.00014886,2]
[355201796,1741005040651,-501.15778884,0.00014886,2]
[355201797,1741005040662,-500.0,0.00014886,2]
[355201798,1741005040672,-500.0,0.00014886,2]
[355201799,1741005040682,-500.0,0.00014886,2]
[355201800,1741005040692,-500.0,0.00014886,2]
[355201801,1741005040702,-500.0,0.00014886,2]
[355201802,1741005040712,-361.98202471,0.00014886,2]
[355201803,1741005040722,-500.0,0.00014886,2]
[355201804,1741005040731,-444.65849318,0.00014886,2]
[355201805,1741005040741,-501.22562907,0.00014886,2]
[355201806,1741005040750,-507.9777823,0.00014886,2]
[355201807,1741005040760,-500.0,0.00014886,2]
[355201808,1741005040770,-500.0,0.00014886,2]
[355201809,1741005040780,-504.42463761,0.00014886,2]
[355201810,1741005040790,-500.0,0.00014886,2]
[355201811,1741005040800,-500.0,0.00014886,2]
[355201812,1741005040810,-607.79,0.00014886,2]
[355201813,1741005040819,-500.0,0.00014886,2]
[355201814,1741005040829,-507.833694,0.00014886,2]
[355201815,1741005040839,-510.20358117,0.00014886,2]
[355201816,1741005040849,-500.0,0.00014886,2]
[355201817,1741005040859,-500.0,0.00014886,2]
[355201818,1741005040868,-172.54548564,0.00014886,2]
[355201819,1741005040877,-503.3796219,0.00014886,2]
[355201820,1741005040887,-500.0,0.00014886,2]
[355201821,1741005040896,-500.0,0.00014886,2]
[355201822,1741005040905,-500.0,0.00014886,2]
[355201823,1741005040915,-503.25350523,0.00014886,2]
[355201824,1741005040924,-510.59190328,0.00014886,2]
[355201825,1741005040935,-500.0,0.00014886,2]
[355201826,1741005040944,-504.49978581,0.00014886,2]
[355201827,1741005040954,-504.40773533,0.00014886,2]
[355201828,1741005040964,-500.0,0.00014886,2]
[355201829,1741005040974,-500.0,0.00014886,2]
[355201830,1741005040984,-500.0,0.00014886,2]
[355201831,1741005040995,-496.56967249,0.00014886,2]
[355201832,1741005041005,-500.0,0.00014886,2]
[355201833,1741005041014,-500.0,0.00014886,2]
[355201834,1741005041024,-500.0,0.00014886,2]
[355201835,1741005041034,-500.0,0.00014886,2]
[355201836,1741005041048,-504.67800385,0.00014886,2]
[355201837,1741005041058,-500.0,0.00014886,2]
[355201838,1741005041068,-500.0,0.00014886,2]
[355201839,1741005041078,-505.91714342,0.00014886,2]
[355201840,1741005041087,-500.0,0.00014886,2]
[355201841,1741005041096,-500.0,0.00014886,2]
[355201842,1741005041106,-500.0,0.00014886,2]
[355201843,1741005041119,-500.0,0.00014886,2]
[355201844,1741005041128,-500.0,0.00014886,2]
[355201845,1741005041138,-500.0,0.00014886,2]
[355201846,1741005041148,-500.0,0.00014886,2]
[355201847,1741005041158,-504.28347357,0.00014886,2]
[355201848,1741005041169,-500.0,0.00014886,2]
[355201849,1741005041179,-500.0,0.00014886,2]
[355201850,1741005041188,-500.0,0.00014886,2]
[355201851,1741005041198,-500.0,0.00014886,2]
[355201852,1741005041208,-500.0,0.00014886,2]
[355201853,1741005041218,-510.14980583,0.00014886,2]
[355201854,1741005041227,-500.0,0.00014886,2]
[355201855,1741005041238,-500.0,0.00014886,2]
[355201856,1741005041247,-500.0,0.00014886,2]
[355201857,1741005041257,-500.0,0.00014886,2]
[355201858,1741005041267,-500.0,0.00014886,2]
[355201859,1741005041277,-500.0,0.00014886,2]
[355201860,1741005041286,-500.0,0.00014886,2]
[355201861,1741005041296,-500.0,0.00014886,2]
[355201862,1741005041306,-500.0,0.00014886,2]
[355201863,1741005041316,-500.0,0.00014886,2]
[355201864,1741005041326,-503.40866994,0.00014886,2]
[355201865,1741005041335,-500.0,0.00014886,2]
[355201866,1741005041345,-500.0,0.00014886,2]
[355201867,1741005041355,-500.0,0.00014886,2]
[355201868,1741005041364,-500.0,0.00014886,2]
[355201869,1741005041374,-500.0,0.00014886,2]
[355201870,1741005041384,-500.0,0.00014886,2]
[355201871,1741005041394,-500.0,0.00014886,2]
[355201872,1741005041405,-500.0,0.00014886,2]
[355201873,1741005041415,-500.0,0.00014886,2]
[355201874,1741005041426,-500.0,0.00014886,2]
[355201875,1741005041436,-500.0,0.00014886,2]
[355201876,1741005041445,-596.93,0.00014886,2]
[355201877,1741005041455,-500.0,0.00014886,2]
[355201878,1741005041464,-500.0,0.00014886,2]
[355201879,1741005041474,-500.0,0.00014886,2]
[355201880,1741005041484,-500.0,0.00014886,2]
[355201881,1741005041494,-500.0,0.00014886,2]
[355201882,1741005041504,-500.0,0.00014886,2]
[355201883,1741005041514,-500.0,0.00014886,2]
[355201884,1741005041526,-500.0,0.00014886,2]
[355201885,1741005041536,-500.0,0.00014886,2]
[355201886,1741005041546,-500.0,0.00014886,2]
[355201887,1741005041555,-500.0,0.00014886,2]
[355201888,1741005041565,-500.0,0.00014886,2]
[355201889,1741005041574,-500.0,0.00014886,2]
[355201890,1741005041584,-503.26231935,0.00014886,2]
[355201891,1741005041594,-500.0,0.00014886,2]
[355201892,1741005041604,-500.0,0.00014886,2]
[355201893,1741005041614,-500.0,0.00014886,2]
[355201894,1741005041624,-648.34,0.00014886,2]
[355201895,1741005041634,-500.0,0.00014886,2]
[355201896,1741005041644,-500.0,0.00014886,2]
[355201897,1741005041654,-500.0,0.00014886,2]
[355201898,1741005041664,-500.0,0.00014886,2]
[355201899,1741005041674,-500.0,0.00014886,2]
[355201900,1741005041685,-500.0,0.00014886,2]
[355201901,1741005041695,-500.0,0.00014886,2]
[355201902,1741005041705,-503.68557119,0.00014886,2]
[355201903,1741005041715,-506.60967935,0.00014886,2]
[355201904,1741005041726,-500.0,0.00014886,2]
[355201905,1741005041735,-500.0,0.00014886,2]
[355201906,1741005041744,-504.30537683,0.00014886,2]
[355201907,1741005041754,-500.0,0.00014886,2]
[355201908,1741005041763,-500.0,0.00014886,2]
[355201909,1741005041775,-500.0,0.00014886,2]
[355201910,1741005041786,-500.0,0.00014886,2]
[355201911,1741005041796,-500.0,0.00014886,2]
[355201912,1741005041806,-500.0,0.00014886,2]
[355201913,1741005041816,-504.81210203,0.00014886,2]
[355201914,1741005041825,-500.0,0.00014886,2]
[355201915,1741005041835,-500.0,0.00014886,2]
[355201916,1741005041845,-500.0,0.00014886,2]
[355201917,1741005041855,-500.0,0.00014886,2]
[355201918,1741005041864,-500.0,0.00014886,2]
[355201919,1741005041873,-500.0,0.00014886,2]
[355201920,1741005041883,-500.0,0.00014886,2]
[355201921,1741005041893,-500.0,0.00014886,2]
[355201922,1741005041903,-500.0,0.00014886,2]
[355201923,1741005041913,-500.0,0.00014886,2]
[355201924,1741005041923,-500.0,0.00014886,2]
[355201925,1741005041933,-500.0,0.00014886,2]
[355201926,1741005041943,-500.0,0.00014886,2]
[355201927,1741005041954,-503.95515254,0.00014886,2]
[355201928,1741005041964,-500.0,0.00014886,2]
[355201929,1741005041973,-500.0,0.00014886,2]
[355201930,1741005041983,-500.0,0.00014886,2]
[355201931,1741005041993,-500.0,0.00014886,2]
[355201932,1741005042003,-501.74384397,0.00014886,2]
[355201933,1741005042013,-500.0,0.00014886,2]
[355201934,1741005042022,-500.0,0.00014886,2]
[355201935,1741005042032,-474.8640707,0.00014886,2]
[355201936,1741005042047,-500.0,0.00014886,2]
[355201937,1741005042056,-500.0,0.00014886,2]
[355201938,1741005042066,-500.0,0.00014886,2]
[355201939,1741005042076,-500.0,0.00014886,2]
[355201940,1741005042087,-504.90067887,0.00014886,2]
[355201941,1741005042097,-500.0,0.00014886,2]
[355201942,1741005042107,-500.0,0.00014886,2]
[355201943,1741005042117,-500.0,0.00014886,2]
[355201944,1741005042127,-500.0,0.00014886,2]
[355201945,1741005042136,-500.0,0.00014886,2]
[355201946,1741005042146,-500.0,0.00014886,2]
[355201947,1741005042157,-500.0,0.00014886,2]
[355201948,1741005042167,-501.93783441,0.00014886,2]
[355201949,1741005042177,-503.46846146,0.00014886,2]
[355201950,1741005042187,-500.0,0.00014886,2]
[355201951,1741005042196,-500.0,0.00014886,2]
[355201952,1741005042207,-506.67689285,0.00014886,2]
[355201953,1741005042216,-500.0,0.00014886,2]
[355201954,1741005042233,-504.4307313,0.00014886,2]
[355201955,1741005042243,-505.6405411,0.00014886,2]
[355201956,1741005042253,-500.0,0.00014886,2]
[355201957,1741005042263,-500.0,0.00014886,2]
[355201958,1741005042274,-500.0,0.00014886,2]
[355201959,1741005042396,-500.0,0.00014886,2]
[355201960,1741005042422,-510.39059269,0.00014886,2]
[355201961,1741005042432,-500.0,0.00014886,2]
[355201962,1741005042442,-500.0,0.00014886,2]
[355201963,1741005042451,-509.18959415,0.00014886,2]
[355201964,1741005042460,-500.0,0.00014886,2]
[355201965,1741005042469,-505.93525203,0.00014886,2]
[355201966,1741005042479,-500.0,0.00014886,2]
[355201967,1741005042488,-500.0,0.00014886,2]
[355201968,1741005042497,-500.0,0.00014886,2]
[355201969,1741005042506,-500.0,0.00014886,2]
[355201970,1741005042517,-500.0,0.00014886,2]
[355201971,1741005042528,-510.7597061,0.00014886,2]
[355201972,1741005042538,-505.44838111,0.00014886,2]
[355201973,1741005042548,-501.9806912,0.00014886,2]
[355201974,1741005042558,-502.14966918,0.00014886,2]
[355201975,1741005042568,-573.81,0.00014886,2]
[355201976,1741005042577,-500.0,0.00014886,2]
[355201977,1741005042586,-508.60707983,0.00014886,2]
[355201978,1741005042596,-1021.29,0.00014886,2]
[355201979,1741005042605,-5976.35,0.00014886,2]
[355201980,1741005042615,-507.22209601,0.00014886,2]
[355201981,1741005042624,-500.0,0.00014886,2]
[355201982,1741005042634,-500.0,0.00014886,2]
[355201983,1741005042643,-500.0,0.00014886,2]
[355201984,1741005042652,-500.0,0.00014886,2]
[355201985,1741005042662,-1000.0,0.00014886,2]
[355201986,1741005042671,-502.14584732,0.00014886,2]
[355201987,1741005042680,-582.51,0.00014886,2]
[355201988,1741005042690,-500.0,0.00014886,2]
[355201989,1741005042700,-212.157038,0.00014886,2]
[355201990,1741005042709,-212.157038,0.00014886,2]
[355201991,1741005042719,-212.157038,0.00014886,2]
[355201992,1741005042728,-11305.68,0.00014886,2]
[355201993,1741005042738,-503.56181624,0.00014886,2]
[355201994,1741005042747,-212.157038,0.00014886,2]
[355201995,1741005042757,-212.157038,0.00014886,2]
[355201996,1741005042766,-212.157038,0.00014886,2]
[355201997,1741005042776,-500.0,0.00014886,2]
[355201998,1741005042786,-510.67337665,0.00014886,2]
[355201999,1741005042796,-500.0,0.00014886,2]
[355202000,1741005042806,-505.57007708,0.00014886,2]
[355202001,1741005042816,-502.85704092,0.00014886,2]
[355202002,1741005042825,-779.24,0.00014886,2]
[355202003,1741005042834,-500.0,0.00014886,2]
[355202004,1741005042844,-502.38939727,0.00014886,2]
[355202005,1741005042853,-503.54105121,0.00014886,2]
[355202006,1741005042863,-503.85038019,0.00014886,2]
[355202007,1741005042872,-500.0,0.00014886,2]
[355202008,1741005042882,-524.29084824,0.00014886,2]
[355202009,1741005042891,-706.99,0.00014886,2]
[355202010,1741005042900,-538.93,0.00014886,2]
[355202011,1741005042910,-508.98022204,0.00014886,2]
[355202012,1741005042919,-515.45361604,0.00014886,2]
[355202013,1741005042928,-500.0,0.00014886,2]
[355202014,1741005042938,-501.84094789,0.00014886,2]
[355202015,1741005042947,-503.46042873,0.00014886,2]
[355202016,1741005042956,-500.0,0.00014886,2]
[355202017,1741005042965,-500.0,0.00014886,2]
[355202018,1741005042974,-513.2531251,0.00014886,2]
[355202019,1741005042984,-500.0,0.00014886,2]
[355202020,1741005042994,-500.0,0.00014886,2]
[355202021,1741005043003,-500.0,0.00014886,2]
[355202022,1741005043012,-500.0,0.00014886,2]
[355202023,1741005043022,-500.0,0.00014886,2]
[355202024,1741005043036,-527.49422322,0.00014886,2]
[355202025,1741005043049,-500.0,0.00014886,2]
[355202026,1741005043059,-511.24547381,0.00014886,2]
[355202027,1741005043068,-500.0,0.00014886,2]
[355202028,1741005043078,-500.0,0.00014886,2]
[355202029,1741005043088,-500.0,0.00014886,2]
[355202030,1741005043098,-500.0,0.00014886,2]
[355202031,1741005043107,-548.61,0.00014886,2]
[355202032,1741005043119,-612.59,0.00014886,2]
[355202033,1741005043129,-502.7025436,0.00014886,2]
[355202034,1741005043139,-13766.57,0.00014886,2]
[355202035,1741005043148,-500.0,0.00014886,2]
[355202036,1741005043158,-151.0,0.00014886,2]
[355202037,1741005043167,-214.459712,0.00014886,2]
[355202038,1741005043175,-511.7056947,0.00014886,2]
[355202039,1741005043185,-500.0,0.00014886,2]
[355202040,1741005043195,-500.0,0.00014886,2]
[355202041,1741005043204,-514.18129632,0.00014886,2]
[355202042,1741005043213,-503.50211311,0.00014886,2]
[355202043,1741005043223,-158.379694,0.00014886,2]
[355202044,1741005043232,-1165.35,0.00014886,2]
[355202045,1741005043241,-511.91286778,0.00014886,2]
[355202046,1741005043250,-511.96341713,0.00014886,2]
[355202047,1741005043260,-151.0,0.00014886,2]
[355202048,1741005043269,-151.0,0.00014886,2]
[355202049,1741005043280,-151.0,0.00014886,2]
[355202050,1741005043289,-424.16763985,0.00014886,2]
[355202051,1741005043298,-505.11993947,0.00014886,2]
[355202052,1741005043307,-502.09148987,0.00014886,2]
[355202053,1741005043316,-510.02577434,0.00014886,2]
[355202054,1741005043325,-152.119258,0.00014886,2]
[355202055,1741005043335,-500.0,0.00014886,2]
[355202056,1741005043343,-500.0,0.00014886,2]
[355202057,1741005043352,-151.0,0.00014886,2]
[355202058,1741005043362,-500.0,0.00014886,2]
[355202059,1741005043371,-151.0,0.00014886,2]
[355202060,1741005043379,-508.19534571,0.00014886,2]
[355202061,1741005043389,-500.0,0.00014886,2]
[355202062,1741005043398,-515.03786869,0.00014886,2]
[355202063,1741005043407,-500.0,0.00014886,2]
[355202064,1741005043416,-504.70163891,0.00014886,2]
[355202065,1741005043425,-500.0,0.00014886,2]
[355202066,1741005043434,-500.0,0.00014886,2]
[355202067,1741005043443,-1103.40590767,0.00014886,2]
[355202068,1741005043452,-507.38534434,0.00014886,2]
[355202069,1741005043461,-503.50309556,0.00014886,2]
[355202070,1741005043470,-500.0,0.00014886,2]
[355202071,1741005043479,-500.0,0.00014886,2]
[355202072,1741005043489,-151.0,0.00014886,2]
[355202073,1741005043498,-151.0,0.00014886,2]
[355202074,1741005043507,-500.0,0.00014886,2]
[355202075,1741005043516,-151.0,0.00014886,2]
[355202076,1741005043527,-500.0,0.00014886,2]
[355202077,1741005043537,-500.0,0.00014886,2]
[355202078,1741005043546,-500.0,0.00014886,2]
[355202079,1741005043556,-500.0,0.00014886,2]
[355202080,1741005043565,-505.79277058,0.00014886,2]
[355202081,1741005043575,-970.55,0.00014886,2]
[355202082,1741005043584,-503.36729609,0.00014886,2]
[355202083,1741005043593,-512.57288116,0.00014886,2]
[355202084,1741005043603,-507.63774358,0.00014886,2]
[355202085,1741005043612,-502.33484252,0.00014886,2]
[355202086,1741005043621,-505.60139163,0.00014886,2]
[355202087,1741005043631,-506.32226708,0.00014886,2]
[355202088,1741005043640,-500.0,0.00014886,2]
[355202089,1741005043650,-704.17,0.00014886,2]
[355202090,1741005043659,-505.93213184,0.00014886,2]
[355202091,1741005043669,-500.0,0.00014886,2]
[355202092,1741005043679,-507.57340235,0.00014886,2]
[355202093,1741005043688,-500.0,0.00014886,2]
[355202094,1741005043697,-151.0,0.00014886,2]
[355202095,1741005043707,-151.0,0.00014886,2]
[355202096,1741005043716,-503.32734559,0.00014886,2]
[355202097,1741005043726,-508.4228298,0.00014886,2]
[355202098,1741005043735,-184.21576,0.00014886,2]
[355202099,1741005043745,-500.0,0.00014886,2]
[355202100,1741005043755,-500.0,0.00014886,2]
[355202101,1741005043764,-509.37119251,0.00014886,2]
[355202102,1741005043775,-6072.89,0.00014886,2]
[355202103,1741005043785,-500.0,0.00014886,2]
[355202104,1741005043795,-699.39,0.00014886,2]
[355202106,1741005043804,-513.92007227,0.00014886,2]
[355202107,1741005043813,-500.0,0.00014886,2]
[355202108,1741005043823,-153.893987,0.00014886,2]
[355202109,1741005043832,-500.0,0.00014886,2]
[355202110,1741005043841,-512.91968812,0.00014886,2]
[355202111,1741005043850,-508.58270856,0.00014886,2]
[355202112,1741005043858,-151.0,0.00014886,2]
[355202113,1741005043867,-502.4786846,0.00014886,2]
[355202114,1741005043876,-500.0,0.00014886,2]
[355202115,1741005043885,-151.0,0.00014886,2]
[355202116,1741005043895,-507.15695908,0.00014886,2]
[355202117,1741005043904,-338.54427032,0.00014886,2]
[355202118,1741005043914,-500.0,0.00014886,2]
[355202119,1741005043923,-505.76233804,0.00014886,2]
[355202120,1741005043932,-500.0,0.00014886,2]
[355202121,1741005043941,-500.0,0.00014886,2]
[355202122,1741005043951,-564.33,0.00014886,2]
[355202123,1741005043960,-502.74474437,0.00014886,2]
[355202124,1741005043969,-500.0,0.00014886,2]
[355202125,1741005043979,-500.0,0.00014886,2]
[355202126,1741005043988,-506.04988539,0.00014886,2]
[355202127,1741005043997,-506.90628818,0.00014886,2]
[355202128,1741005044007,-500.0,0.00014886,2]
[355202129,1741005044016,-500.0,0.00014886,2]
[355202130,1741005044026,-500.0,0.00014886,2]
[355202131,1741005044037,-508.49008071,0.00014886,2]
[355202133,1741005044048,-500.0,0.00014886,2]
[355202135,1741005044057,-500.0,0.00014886,2]
[355202137,1741005044066,-503.48491622,0.00014886,2]
[355202138,1741005044076,-531.49,0.00014886,2]
[355202139,1741005044086,-500.0,0.00014886,2]
[355202140,1741005044095,-507.68761664,0.00014886,2]
[355202141,1741005044105,-514.5249591,0.00014886,2]
[355202142,1741005044116,-511.59087002,0.00014886,2]
[355202143,1741005044126,-505.27288607,0.00014886,2]
[355202144,1741005044135,-533.72422084,0.00014886,2]
[355202145,1741005044144,-500.0,0.00014886,2]
[355202146,1741005044153,-513.91443038,0.00014886,2]
[355202148,1741005044163,-507.738546,0.00014886,2]
[355202150,1741005044172,-500.0,0.00014886,2]
[355202152,1741005044181,-500.0,0.00014886,2]
[355202154,1741005044190,-823.41,0.00014886,2]
[355202156,1741005044200,-500.0,0.00014886,2]
[355202157,1741005044209,-516.87358988,0.00014886,2]
[355202159,1741005044219,-500.0,0.00014886,2]
[355202160,1741005044228,-500.0,0.00014886,2]
[355202162,1741005044237,-500.0,0.00014886,2]
[355202164,1741005044247,-506.03327657,0.00014886,2]
[355202166,1741005044256,-21439.09,0.00014886,2]
[355202168,1741005044266,-504.31479339,0.00014886,2]
[355202169,1741005044277,-500.0,0.00014886,2]
[355202170,1741005044286,-506.24157244,0.00014886,2]
[355202171,1741005044295,-511.69105847,0.00014886,2]
[355202172,1741005044305,-500.0,0.00014886,2]
[355202173,1741005044315,-512.1770089,0.00014886,2]
[355202174,1741005044324,-511.96662913,0.00014886,2]
[355202175,1741005044334,-500.0,0.00014886,2]
[355202176,1741005044344,-508.9533189,0.00014886,2]
[355202177,1741005044354,-500.0,0.00014886,2]
[355202178,1741005044363,-510.57128453,0.00014886,2]
[355202179,1741005044372,-500.0,0.00014886,2]
[355202180,1741005044381,-506.89692514,0.00014886,2]
[355202181,1741005044391,-501.49371577,0.00014886,2]
[355202182,1741005044400,-500.0,0.00014886,2]
[355202183,1741005044410,-506.41214155,0.00014886,2]
[355202184,1741005044419,-500.0,0.00014886,2]
[355202185,1741005044428,-500.0,0.00014886,2]
[355202186,1741005044437,-500.0,0.00014886,2]
[355202187,1741005044446,-500.0,0.00014886,2]
[355202188,1741005044456,-500.0,0.00014886,2]
[355202189,1741005044465,-500.0,0.00014886,2]
[355202190,1741005044474,-500.0,0.00014886,2]
[355202191,1741005044483,-727.6,0.00014886,2]
[355202192,1741005044492,-500.0,0.00014886,2]
[355202193,1741005044501,-500.0,0.00014886,2]
[355202194,1741005044511,-500.0,0.00014886,2]
[355202195,1741005044520,-415.344424,0.00014886,2]
[355202196,1741005044531,-500.0,0.00014886,2]
[355202197,1741005044540,-415.344424,0.00014886,2]
[355202198,1741005044549,-500.0,0.00014886,2]
[355202199,1741005044558,-415.344424,0.00014886,2]
[355202200,1741005044568,-415.344424,0.00014886,2]
[355202201,1741005044577,-500.0,0.00014886,2]
[355202202,1741005044586,-500.0,0.00014886,2]
[355202203,1741005044595,-415.344424,0.00014886,2]
[355202204,1741005044605,-550.04820295,0.00014886,2]
[355202205,1741005044614,-500.0,0.00014886,2]
[355202206,1741005044623,-415.344424,0.00014886,2]
[355202207,1741005044632,-415.344424,0.00014886,2]
[355202208,1741005044641,-415.344424,0.00014886,2]
[355202209,1741005044650,-500.0,0.00014886,2]
[355202210,1741005044659,-807.71,0.00014886,2]
[355202211,1741005044669,-507.29865494,0.00014886,2]
[355202212,1741005044678,-500.0,0.00014886,2]
[355202213,1741005044687,-500.0,0.00014886,2]
[355202214,1741005044696,-505.66430744,0.00014886,2]
[355202215,1741005044705,-524.33969027,0.00014886,2]
[355202216,1741005044714,-503.82069902,0.00014886,2]
[355202217,1741005044723,-508.11641046,0.00014886,2]
[355202218,1741005044732,-24587.77,0.00014886,2]
[355202219,1741005044741,-500.0,0.00014886,2]
[355202220,1741005044750,-509.47328834,0.00014886,2]
[355202221,1741005044759,-500.0,0.00014886,2]
[355202222,1741005044768,-500.0,0.00014886,2]
[355202223,1741005044778,-521.76585745,0.00014886,2]
[355202224,1741005044787,-500.0,0.00014886,2]
[355202225,1741005044796,-500.0,0.00014886,2]
[355202226,1741005044805,-499.04143142,0.00014886,2]
[355202227,1741005044814,-500.0,0.00014886,2]
[355202228,1741005044823,-500.0,0.00014886,2]
[355202229,1741005044832,-500.0,0.00014886,2]
[355202230,1741005044841,-505.10447037,0.00014886,2]
[355202231,1741005044850,-509.16110073,0.00014886,2]
[355202232,1741005044859,-501.37869609,0.00014887,2]
[355202233,1741005044869,-501.59070576,0.00014887,2]
[355202234,1741005044878,-502.89887003,0.00014887,2]
[355202235,1741005044887,-503.13415715,0.00014887,2]
[355202236,1741005044895,-502.04747625,0.00014887,2]
[355202237,1741005044904,-501.03461958,0.00014887,2]
[355202238,1741005044913,-500.91485245,0.00014887,2]
[355202239,1741005044923,-502.09298522,0.00014887,2]
[355202240,1741005044931,-290.61757042,0.00014887,2]
[355202241,1741005044940,-501.5613725,0.00014887,2]
[355202242,1741005044949,-502.9775089,0.00014887,2]
[355202243,1741005044958,-501.77183634,0.00014887,2]
[355202244,1741005044967,-508.41567186,0.00014887,2]
[355202245,1741005044976,-508.70023564,0.00014887,2]
[355202246,1741005044986,-501.6641785,0.00014887,2]
[355202247,1741005045116,-505.86710197,0.00014887,2]
[355202248,1741005045126,-501.52186883,0.00014887,2]
[355202249,1741005045136,-501.65254054,0.00014887,2]
[355202250,1741005045145,-502.75022337,0.00014887,2]
[355202251,1741005045155,-501.99551466,0.00014887,2]
[355202252,1741005045164,-501.36998196,0.00014887,2]
[355202253,1741005045174,-501.5971478,0.00014887,2]
[355202254,1741005045183,-500.0,0.00014887,2]
[355202255,1741005045192,-500.0,0.00014887,2]
[355202256,1741005045201,-227.75,0.00014887,2]
[355202257,1741005045211,-500.0,0.00014887,2]
[355202258,1741005045221,-500.0,0.00014887,2]
[355202259,1741005045230,-500.0,0.00014887,2]
[355202260,1741005045239,-648.23,0.00014887,2]
[355202261,1741005045249,-500.0,0.00014887,2]
[355202262,1741005045258,-500.0,0.00014887,2]
[355202263,1741005045267,-500.0,0.00014887,2]
[355202264,1741005045276,-504.05290147,0.00014887,2]
[355202265,1741005045285,-505.39827391,0.00014887,2]
[355202266,1741005045294,-509.91272772,0.00014887,2]
[355202267,1741005045304,-516.23412027,0.00014887,2]
[355202268,1741005045314,-500.0,0.00014887,2]
[355202269,1741005045324,-152.80853306,0.00014887,2]
[355202270,1741005045333,-504.96312076,0.00014887,2]
[355202271,1741005045343,-500.0,0.00014887,2]
[355202272,1741005045352,-511.22507473,0.00014887,2]
[355202273,1741005045361,-516.55,0.00014887,2]
[355202274,1741005045371,-500.0,0.00014887,2]
[355202275,1741005045381,-514.91564873,0.00014887,2]
[355202276,1741005045390,-510.53279003,0.00014887,2]
[355202277,1741005045399,-500.0,0.00014887,2]
[355202278,1741005045408,-508.04360369,0.00014887,2]
[355202279,1741005045417,-500.0,0.00014887,2]
[355202280,1741005045426,-304.58860135,0.00014887,2]
[355202281,1741005045435,-515.4877811,0.00014887,2]
[355202282,1741005045444,-510.85468568,0.00014887,2]
[355202283,1741005045454,-507.6337051,0.00014887,2]
[355202284,1741005045463,-506.92694401,0.00014887,2]
[355202285,1741005045472,-506.07451886,0.00014887,2]
[355202286,1741005045481,-504.91016811,0.00014887,2]